[Event "Marshall CC Premier 04-2025"]
[Site "New York"]
[Date "2025.04.06"]
[Round "3.1"]
[White "Chasin, Nico"]
[Black "Muthukumar, Haari"]
[Result "1-0"]
[Annotator "RC"]
[ECO "E10"]
[WhiteElo "2435"]
[BlackElo "2197"]
[PlyCount "75"]
[EventDate "2025.01.03"]
[EventType "swiss"]
[EventCountry "USA"]
[SourceTitle "playchess.com"]
[Source "ChessBase"]
[SourceQuality "1"]
[TimeControl "5400+30"]

1. d4 {[%emt 0:00:10]} e6 {[%emt 0:00:19]} 2. Nf3 {[%emt 0:00:06]} Nf6 {[%emt 0:00:23]} 3. c4 {[%emt 0:00:10]} a6 {[%emt 0:00:06]} 4. g3 {[%emt 0:01:53]} b5 {[%emt 0:00:09]} 5. b3 {[%emt 0:01:01]} Bb7 {[%emt 0:01:41]} 6. Bg2 {[%emt 0:00:08]} c5 {[%emt 0:03:27]} 7. d5 {[%emt 0:00:16]} exd5 {[%emt 0:00:44]} 8. Nh4 {[%emt 0:00:45]} g6 {[%emt 0:05:25]} 9. O-O {[%emt 0:07:26]} Bg7 {[%emt 0:00:19]} 10. Bb2 {[%emt 0:00:06]} O-O {[%emt 0:00:28]} 11. cxd5 {[%emt 0:01:04]} d6 {[%emt 0:01:06]} 12. e4 {[%emt 0:01:18]} Nbd7 {[%emt 0:02:01]} 13. Re1 {[%emt 0:03:04]} Re8 {[%emt 0:04:44]} 14. Nd2 {[%emt 0:04:40]} Qb6 {[%emt 0:04:22]} 15. Rb1 {[%emt 0:01:19]} Rac8 {[%emt 0:08:12]} 16. h3 {[%emt 0:01:01]} Qa7 {[%emt 0:02:25]} 17. Bf1 {[%emt 0:00:45]} Re7 {[%emt 0:07:33]} 18. Ng2 {[%emt 0:01:56]} Ne5 {[%emt 0:06:52]} 19. Ne3 {[%emt 0:03:08]} h5 {[%emt 0:04:56]} 20. a4 {[%emt 0:01:01]} h4 {[%emt 0:06:39]} 21. g4 {[%emt 0:00:22]} Qb6 {[%emt 0:13:31]} 22. Ng2 {[%emt 0:06:32]} Bh6 {[%emt 0:02:01]} 23. Nf3 {[%emt 0:00:30]} Nxf3+ {[%emt 0:02:03]} 24. Qxf3 {[%emt 0:00:13]} Nd7 {[%emt 0:00:03]} 25. Nxh4 {[%emt 0:00:22]} Rce8 {[%emt 0:00:31]} 26. Ng2 {[%emt 0:00:50]} Bg7 {[%emt 0:03:36]} 27. Bxg7 {[%emt 0:00:24]} Kxg7 {[%emt 0:00:02]} 28. g5 {[%emt 0:01:00]} f6 {[%emt 0:01:25]} 29. h4 {[%emt 0:00:04]} Qa5 {[%emt 0:02:14]} 30. axb5 {[%emt 0:01:50]} axb5 {[%emt 0:00:04]} 31. Qg3 {[%emt 0:01:58]} Ne5 {[%emt 0:01:55]} 32. gxf6+ {[%emt 0:00:59]} Kxf6 {[%emt 0:00:04]} 33. f4 {[%emt 0:00:21]} Nf7 {[%emt 0:00:18]} 34. h5 {[%emt 0:02:53]} gxh5 {[%emt 0:02:20]} 35. Nh4 {[%emt 0:00:23]} Nh8 {[%emt 0:00:18]} 36. Nf5 {[%emt 0:00:57]} Rh7 {[%emt 0:02:50]} 37. Nxd6 {[%emt 0:00:10]} Rg8 {[%emt 0:02:07]} 38. e5+ {[%emt 0:00:02]} 1-0

[Event "Marshall CC Premier 04-2025"]
[Site "New York"]
[Date "2025.04.06"]
[Round "3.2"]
[White "Hoffman, Luc"]
[Black "Bonin, Jay"]
[Result "1-0"]
[Annotator "RC"]
[ECO "B12"]
[WhiteElo "2211"]
[BlackElo "2110"]
[PlyCount "53"]
[EventDate "2025.01.03"]
[EventType "swiss"]
[EventCountry "USA"]
[SourceTitle "playchess.com"]
[Source "ChessBase"]
[SourceQuality "1"]
[TimeControl "5400+30"]

1. e4 {[%emt 0:00:02]} c6 {[%emt 0:00:26]} 2. d4 {[%emt 0:00:22]} a6 {[%emt 0:00:03]} 3. Bd3 {[%emt 0:00:55]} d5 {[%emt 0:00:11]} 4. Nd2 {[%emt 0:00:55]} Nf6 {[%emt 0:00:38]} 5. c3 {[%emt 0:05:03]} dxe4 {[%emt 0:04:31]} 6. Nxe4 {[%emt 0:00:33]} Nxe4 {[%emt 0:00:25]} 7. Bxe4 {[%emt 0:00:07]} Be6 {[%emt 0:02:43]} 8. Ne2 {[%emt 0:12:23]} Bd5 {[%emt 0:02:05]} 9. Bxd5 {[%emt 0:00:25]} cxd5 {[%emt 0:00:25]} 10. Nf4 {[%emt 0:01:02]} e6 {[%emt 0:00:15]} 11. O-O {[%emt 0:03:26]} Be7 {[%emt 0:04:59]} 12. Qg4 {[%emt 0:01:58]} O-O {[%emt 0:02:09]} 13. Nh5 {[%emt 0:03:09]} g6 {[%emt 0:00:29]} 14. Bh6 {[%emt 0:01:46]} f5 {[%emt 0:01:47]} 15. Qg3 {[%emt 0:02:21]} Bh4 {[%emt 0:01:18]} 16. Qe5 {[%emt 0:02:12]} Rf7 {[%emt 0:02:45]} 17. Nf4 {[%emt 0:00:40]} Nd7 {[%emt 0:02:31]} 18. Qxe6 {[%emt 0:00:29]} Qb6 {[%emt 0:02:30]} 19. Rae1 {[%emt 0:04:19]} Qxb2 {[%emt 0:02:26]} 20. Nxg6 {[%emt 0:05:15]} Bf6 {[%emt 0:00:37]} 21. Ne5 {[%emt 0:00:42]} Bxe5 {[%emt 0:00:14]} 22. dxe5 {[%emt 0:00:01]} Qxa2 {[%emt 0:03:14]} 23. Re3 {[%emt 0:01:43]} f4 {[%emt 0:01:15]} 24. Qg4+ {[%emt 0:00:43]} Kh8 {[%emt 0:00:05]} 25. e6 {[%emt 0:00:02]} fxe3 {[%emt 0:04:31]} 26. exf7 {[%emt 0:00:14]} exf2+ {[%emt 0:00:11]} 27. Kh1 {[%emt 0:00:10]} 1-0

[Event "Marshall CC Premier 04-2025"]
[Site "New York"]
[Date "2025.04.06"]
[Round "3.3"]
[White "Hebbar, Eshaan"]
[Black "Belenky, Nicholas"]
[Result "1/2-1/2"]
[Annotator "RC"]
[ECO "D46"]
[WhiteElo "2175"]
[BlackElo "1958"]
[PlyCount "140"]
[EventDate "2025.01.03"]
[EventType "swiss"]
[EventCountry "USA"]
[SourceTitle "playchess.com"]
[Source "ChessBase"]
[SourceQuality "1"]
[TimeControl "5400+30"]

1. d4 {[%emt 0:00:03]} d5 {[%emt 0:00:05]} 2. c4 {[%emt 0:00:05]} e6 {[%emt 0:00:05]} 3. Nc3 {[%emt 0:00:05]} Nf6 {[%emt 0:00:05]} 4. Nf3 {[%emt 0:00:24]} c6 {[%emt 0:00:16]} 5. e3 {[%emt 0:00:06]} Nbd7 {[%emt 0:00:40]} 6. Qc2 {[%emt 0:00:06]} Bd6 {[%emt 0:01:07]} 7. Bd3 {[%emt 0:00:08]} dxc4 {[%emt 0:00:57]} 8. Bxc4 {[%emt 0:00:13]} b5 {[%emt 0:04:59]} 9. Bd3 {[%emt 0:00:06]} Bb7 {[%emt 0:00:28]} 10. O-O {[%emt 0:00:39]} a6 {[%emt 0:03:42]} 11. e4 {[%emt 0:07:01]} e5 {[%emt 0:02:39]} 12. Rd1 {[%emt 0:02:15]} Qc7 {[%emt 0:02:22]} 13. h3 {[%emt 0:06:37]} O-O {[%emt 0:05:50]} 14. Be3 {[%emt 0:08:28]} c5 {[%emt 0:05:19]} 15. dxc5 {[%emt 0:01:59]} Bxc5 {[%emt 0:03:59]} 16. Bxc5 {[%emt 0:06:23]} Nxc5 {[%emt 0:00:39]} 17. Rac1 {[%emt 0:00:55]} Rac8 {[%emt 0:04:09]} 18. Qe2 {[%emt 0:09:13]} Nxd3 {[%emt 0:16:33]} 19. Qxd3 {[%emt 0:00:07]} Rfd8 {[%emt 0:00:21]} 20. Qe3 {[%emt 0:01:05]} Qe7 {[%emt 0:02:28]} 21. Nd5 {[%emt 0:05:33]} Qe6 {[%emt 0:06:12]} 22. Ng5 {[%emt 0:07:08]} Qd6 {[%emt 0:05:54]} 23. Rxc8 {[%emt 0:00:46]} Bxc8 {[%emt 0:00:57]} 24. Qa7 {[%emt 0:02:14]} Nd7 {[%emt 0:03:14]} 25. Ne3 {[%emt 0:00:17]} Qg6 {[%emt 0:04:02]} 26. Nf3 {[%emt 0:02:47]} Qxe4 {[%emt 0:00:50]} 27. Qc7 {[%emt 0:00:24]} Rf8 {[%emt 0:03:22]} 28. Rxd7 {[%emt 0:00:07]} Bxd7 {[%emt 0:00:03]} 29. Qxd7 {[%emt 0:00:05]} Qb1+ {[%emt 0:01:14]} 30. Kh2 {[%emt 0:00:05]} Qxb2 {[%emt 0:00:16]} 31. Nd5 {[%emt 0:03:47]} e4 {[%emt 0:04:47]} 32. Nd4 {[%emt 0:08:30]} Qxf2 {[%emt 0:01:17]} 33. Nf5 {[%emt 0:00:20]} b4 {[%emt 0:05:15]} 34. Qd6 {[%emt 0:03:03]} Qb2 {[%emt 0:03:01]} 35. Nde7+ {[%emt 0:06:24]} Kh8 {[%emt 0:00:07]} 36. Ng6+ {[%emt 0:00:20]} hxg6 {[%emt 0:00:06]} 37. Qxf8+ {[%emt 0:00:04]} Kh7 {[%emt 0:00:05]} 38. Ng3 {[%emt 0:00:03]} f5 {[%emt 0:01:05]} 39. Qd6 {[%emt 0:02:03]} a5 {[%emt 0:00:38]} 40. h4 {[%emt 0:02:55]} Qxa2 {[%emt 0:05:35]} 41. h5 {[%emt 0:00:04]} Qf7 {[%emt 0:00:10]} 42. Qc5 {[%emt 0:00:46]} Qf6 {[%emt 0:00:31]} 43. hxg6+ {[%emt 0:00:46]} Kxg6 {[%emt 0:00:16]} 44. Kg1 {[%emt 0:00:34]} Qa1+ {[%emt 0:01:31]} 45. Kh2 {[%emt 0:00:06]} Qf6 {[%emt 0:00:14]} 46. Kg1 {[%emt 0:00:30]} b3 {[%emt 0:03:49]} 47. Qxa5 {[%emt 0:04:40]} b2 {[%emt 0:00:13]} 48. Qb5 {[%emt 0:00:23]} Qd4+ {[%emt 0:01:11]} 49. Kh2 {[%emt 0:00:09]} Qf2 {[%emt 0:00:17]} 50. Qe8+ {[%emt 0:00:48]} Kf6 {[%emt 0:01:27]} 51. Qd8+ {[%emt 0:01:26]} Ke6 {[%emt 0:00:11]} 52. Qg8+ {[%emt 0:00:51]} Kd6 {[%emt 0:00:17]} 53. Qd8+ {[%emt 0:00:14]} Kc6 {[%emt 0:00:11]} 54. Qc8+ {[%emt 0:01:27]} Kb5 {[%emt 0:00:26]} 55. Qb7+ {[%emt 0:00:39]} Kc4 {[%emt 0:00:30]} 56. Qa6+ {[%emt 0:00:42]} Kb3 {[%emt 0:00:18]} 57. Qb5+ {[%emt 0:00:55]} Kc2 {[%emt 0:00:13]} 58. Qa4+ {[%emt 0:01:19]} Kc1 {[%emt 0:00:21]} 59. Qc4+ {[%emt 0:00:31]} Kd1 {[%emt 0:00:21]} 60. Qa4+ {[%emt 0:00:31]} Qc2 {[%emt 0:00:19]} 61. Qd4+ {[%emt 0:00:05]} Qd2 {[%emt 0:01:05]} 62. Qa4+ {[%emt 0:00:23]} Ke1 {[%emt 0:00:21]} 63. Qb5 {[%emt 0:00:49]} Kd1 {[%emt 0:00:32]} 64. Qa4+ {[%emt 0:00:05]} Qc2 {[%emt 0:00:58]} 65. Qd4+ {[%emt 0:01:16]} Kc1 {[%emt 0:01:27]} 66. Qg1+ {[%emt 0:00:25]} Qd1 {[%emt 0:00:29]} 67. Qc5+ {[%emt 0:00:12]} Kb1 {[%emt 0:01:05]} 68. Qxf5 {[%emt 0:00:46]} Kc1 {[%emt 0:00:29]} 69. Qc5+ {[%emt 0:00:17]} Qc2 {[%emt 0:00:11]} 70. Qg1+ {[%emt 0:00:22]} Qd1 {[%emt 0:00:40]} 1/2-1/2

[Event "Marshall CC Premier 04-2025"]
[Site "New York"]
[Date "2025.04.05"]
[Round "3.4"]
[White "Marzouq, Chowdhury"]
[Black "Dong, Kyle Qiyu"]
[Result "*"]
[Annotator "RC"]
[ECO "D02"]
[WhiteElo "1983"]
[BlackElo "2006"]
[PlyCount "98"]
[EventDate "2025.01.03"]
[EventType "swiss"]
[EventCountry "USA"]
[SourceTitle "playchess.com"]
[Source "ChessBase"]
[SourceQuality "1"]
[TimeControl "5400+30"]

1. d4 {[%emt 0:02:09]} d5 {[%emt 0:02:31]} 2. Nf3 {[%emt 0:00:11]} Nf6 {[%emt 0:00:59]} 3. Bf4 {[%emt 0:00:08]} c5 {[%emt 0:00:17]} 4. e3 {[%emt 0:00:05]} Nc6 {[%emt 0:00:06]} 5. Nbd2 {[%emt 0:00:05]} e6 {[%emt 0:00:07]} 6. c3 {[%emt 0:00:07]} cxd4 {[%emt 0:00:05]} 7. exd4 {[%emt 0:01:30]} Nh5 {[%emt 0:00:20]} 8. Be3 {[%emt 0:00:13]} Bd6 {[%emt 0:00:06]} 9. Bd3 {[%emt 0:00:45]} Nf4 {[%emt 0:00:05]} 10. Bxf4 {[%emt 0:00:08]} Bxf4 {[%emt 0:00:05]} 11. O-O {[%emt 0:01:09]} O-O {[%emt 0:00:08]} 12. Re1 {[%emt 0:00:41]} Bd6 {[%emt 0:00:07]} 13. Ne5 {[%emt 0:07:01]} Qc7 {[%emt 0:17:21]} 14. Ndf3 {[%emt 0:13:35]} f6 {[%emt 0:01:48]} 15. Nxc6 {[%emt 0:00:38]} bxc6 {[%emt 0:00:23]} 16. c4 {[%emt 0:00:47]} Rb8 {[%emt 0:21:03]} 17. Qc2 {[%emt 0:06:58]} g6 {[%emt 0:00:30]} 18. c5 {[%emt 0:01:21]} Bf4 {[%emt 0:00:14]} 19. g3 {[%emt 0:00:10]} Bh6 {[%emt 0:00:05]} 20. Rab1 {[%emt 0:00:26]} Bg7 {[%emt 0:01:19]} 21. b4 {[%emt 0:16:54]} e5 {[%emt 0:00:20]} 22. Bf1 {[%emt 0:00:30]} Bf5 {[%emt 0:00:38]} 23. Qa4 {[%emt 0:01:18]} Bxb1 {[%emt 0:53:23]} 24. Rxb1 {[%emt 0:00:05]} e4 {[%emt 0:00:24]} 25. Nd2 {[%emt 0:00:07]} f5 {[%emt 0:00:25]} 26. b5 {[%emt 0:00:04]} f4 {[%emt 0:02:29]} 27. bxc6 {[%emt 0:46:55]} Rxb1 {[%emt 0:00:35]} 28. Nxb1 {[%emt 0:00:03]} fxg3 {[%emt 0:00:11]} 29. hxg3 {[%emt 0:00:03]} Qf7 {[%emt 0:00:30]} 30. f4 {[%emt 0:47:30]} exf3 {[%emt 0:00:06]} 31. Nc3 {[%emt 0:00:15]} f2+ {[%emt 0:00:06]} 32. Kh2 {[%emt 0:00:02]} Kh8 {[%emt 0:01:49]} 33. Nb5 {[%emt 0:00:29]} g5 {[%emt 0:02:44]} 34. Qd1 {[%emt 0:02:06]} Qe6 {[%emt 0:00:31]} 35. Nd6 {[%emt 0:03:56]} g4 {[%emt 0:00:13]} 36. Kg2 {[%emt 0:43:18]} Qg6 {[%emt 0:02:00]} 37. Be2 {[%emt 0:07:41]} Qh5 {[%emt 0:01:04]} 38. Qh1 {[%emt 0:00:18]} f1=Q+ {[%emt 0:00:26]} 39. Bxf1 {[%emt 0:00:14]} Qg5 {[%emt 0:01:31]} 40. Be2 {[%emt 0:01:16]} Bxd4 {[%emt 0:02:16]} 41. Qe1 {[%emt 0:02:42]} Bxc5 {[%emt 0:00:18]} 42. Nb7 {[%emt 0:01:42]} Bb6 {[%emt 0:00:55]} 43. a4 {[%emt 0:00:31]} Qh5 {[%emt 0:00:45]} 44. Bxg4 {[%emt 0:01:04]} Qxg4 {[%emt 0:00:11]} 45. Nd6 {[%emt 0:01:03]} Qg6 {[%emt 0:44:43]} 46. Qe5+ {[%emt 0:02:30]} Qf6 {[%emt 0:00:14]} 47. Qxf6+ {[%emt 0:00:24]} Rxf6 {[%emt 0:00:01]} 48. a5 {[%emt 0:00:34]} Rxd6 {[%emt 0:00:15]} 49. axb6 {[%emt 0:00:06]} axb6 {[%emt 0:00:04]} *

[Event "Marshall CC Premier 04-2025"]
[Site "New York"]
[Date "2025.04.06"]
[Round "3.5"]
[White "Shen, Leo Xiaohang"]
[Black "Tse, Whitney"]
[Result "0-1"]
[Annotator "ChessBase"]
[ECO "B22"]
[WhiteElo "1998"]
[BlackElo "1951"]
[PlyCount "128"]
[EventDate "2025.01.03"]
[EventType "swiss"]
[EventCountry "USA"]
[SourceTitle "playchess.com"]
[Source "ChessBase"]
[SourceQuality "1"]
[TimeControl "5400+30"]

1. e4 {[%emt 0:00:02]} c5 {[%emt 0:00:04]} 2. a3 {[%emt 0:00:08]} e6 {[%emt 0:00:12]} 3. c3 {[%emt 0:00:07]} Nf6 {[%emt 0:00:53]} 4. e5 {[%emt 0:00:45]} Nd5 {[%emt 0:00:04]} 5. d4 {[%emt 0:00:08]} cxd4 {[%emt 0:00:03]} 6. cxd4 {[%emt 0:00:03]} d6 {[%emt 0:00:35]} 7. Nf3 {[%emt 0:00:26]} Bd7 {[%emt 0:00:55]} 8. Bd3 {[%emt 0:00:51]} Bc6 {[%emt 0:00:28]} 9. O-O {[%emt 0:00:22]} Nd7 {[%emt 0:00:09]} 10. Re1 {[%emt 0:02:18]} dxe5 {[%emt 0:08:06]} 11. dxe5 {[%emt 0:00:33]} Be7 {[%emt 0:00:21]} 12. Nd4 {[%emt 0:03:30]} Qc7 {[%emt 0:13:01]} 13. Nxc6 {[%emt 0:00:29]} bxc6 {[%emt 0:00:05]} 14. Qe2 {[%emt 0:02:40]} Bc5 {[%emt 0:01:10]} 15. Kh1 {[%emt 0:12:31]} Bd4 {[%emt 0:03:25]} 16. f4 {[%emt 0:00:12]} Rb8 {[%emt 0:04:20]} 17. Ra2 {[%emt 0:00:56]} Nc5 {[%emt 0:09:42]} 18. Bc2 {[%emt 0:00:56]} Nd7 {[%emt 0:13:46]} 19. Qf3 {[%emt 0:01:41]} Qa5 {[%emt 0:09:28]} 20. Bd2 {[%emt 0:03:15]} Qa6 {[%emt 0:07:10]} 21. Nc3 {[%emt 0:02:03]} Nxc3 {[%emt 0:04:55]} 22. Bxc3 {[%emt 0:00:49]} Qc4 {[%emt 0:00:58]} 23. Raa1 {[%emt 0:01:36]} Bxc3 {[%emt 0:00:35]} 24. bxc3 {[%emt 0:00:12]} g6 {[%emt 0:02:41]} 25. Red1 {[%emt 0:01:44]} Nb6 {[%emt 0:00:22]} 26. Rd4 {[%emt 0:02:19]} Qc5 {[%emt 0:02:08]} 27. Rad1 {[%emt 0:05:47]} O-O {[%emt 0:01:59]} 28. a4 {[%emt 0:00:35]} Nc4 {[%emt 0:03:44]} 29. Be4 {[%emt 0:00:51]} Nb2 {[%emt 0:00:13]} 30. Rc1 {[%emt 0:02:16]} Rb3 {[%emt 0:02:46]} 31. h3 {[%emt 0:05:28]} Ra3 {[%emt 0:00:53]} 32. Bxc6 {[%emt 0:01:38]} Rc8 {[%emt 0:00:27]} 33. Rb4 {[%emt 0:03:07]} Qxb4 {[%emt 0:04:51]} 34. cxb4 {[%emt 0:00:02]} Rxf3 {[%emt 0:00:02]} 35. gxf3 {[%emt 0:00:02]} Nd3 {[%emt 0:00:01]} 36. Rc4 {[%emt 0:01:38]} Nxb4 {[%emt 0:00:16]} 37. Bb5 {[%emt 0:00:15]} Rxc4 {[%emt 0:00:27]} 38. Bxc4 {[%emt 0:00:02]} Nd5 {[%emt 0:00:18]} 39. Bxd5 {[%emt 0:11:16]} exd5 {[%emt 0:00:01]} 40. Kg1 {[%emt 0:00:03]} Kf8 {[%emt 0:00:13]} 41. Kf2 {[%emt 0:00:08]} Ke7 {[%emt 0:00:21]} 42. Ke3 {[%emt 0:00:26]} Kd7 {[%emt 0:01:42]} 43. Kd3 {[%emt 0:01:56]} Kc7 {[%emt 0:04:31]} 44. a5 {[%emt 0:05:30]} Kc6 {[%emt 0:01:27]} 45. Kd4 {[%emt 0:00:03]} a6 {[%emt 0:00:03]} 46. h4 {[%emt 0:00:34]} h6 {[%emt 0:00:53]} 47. Kd3 {[%emt 0:03:25]} Kc5 {[%emt 0:00:05]} 48. Kc3 {[%emt 0:00:08]} d4+ {[%emt 0:00:16]} 49. Kb3 {[%emt 0:01:18]} h5 {[%emt 0:00:36]} 50. Kc2 {[%emt 0:00:48]} Kc4 {[%emt 0:00:06]} 51. f5 {[%emt 0:01:30]} gxf5 {[%emt 0:00:03]} 52. f4 {[%emt 0:00:09]} d3+ {[%emt 0:00:08]} 53. Kb2 {[%emt 0:00:05]} Kd4 {[%emt 0:00:08]} 54. Kb3 {[%emt 0:00:57]} Ke3 {[%emt 0:01:00]} 55. Kc4 {[%emt 0:00:32]} d2 {[%emt 0:00:03]} 56. Kc5 {[%emt 0:00:05]} d1=Q {[%emt 0:00:05]} 57. Kb6 {[%emt 0:00:02]} Qd3 {[%emt 0:00:11]} 58. Kb7 {[%emt 0:00:08]} Qc4 {[%emt 0:00:20]} 59. Ka7 {[%emt 0:00:10]} Kd4 {[%emt 0:00:04]} 60. e6 {[%emt 0:00:06]} fxe6 {[%emt 0:00:04]} 61. Kb6 {[%emt 0:00:04]} Kd5 {[%emt 0:00:09]} 62. Kb7 {[%emt 0:00:03]} Qc6+ {[%emt 0:00:25]} 63. Kb8 {[%emt 0:00:18]} Qd7 {[%emt 0:00:06]} 64. Ka8 {[%emt 0:00:04]} Kc6 {[%emt 0:00:02]} 0-1

[Event "Marshall CC Premier 04-2025"]
[Site "New York"]
[Date "2025.04.06"]
[Round "3.6"]
[White "Stancil, Kimani"]
[Black "Klenoff, Caleb"]
[Result "1-0"]
[Annotator "RC"]
[ECO "C18"]
[WhiteElo "1919"]
[BlackElo "2141"]
[PlyCount "41"]
[EventDate "2025.01.03"]
[EventType "swiss"]
[EventCountry "USA"]
[SourceTitle "playchess.com"]
[Source "ChessBase"]
[SourceQuality "1"]
[TimeControl "5400+30"]

1. e4 {[%emt 0:01:27]} e6 {[%emt 0:00:03]} 2. d4 {[%emt 0:00:19]} d5 {[%emt 0:00:04]} 3. Nc3 {[%emt 0:00:14]} Bb4 {[%emt 0:00:15]} 4. e5 {[%emt 0:00:05]} c5 {[%emt 0:00:05]} 5. a3 {[%emt 0:00:06]} Bxc3+ {[%emt 0:00:07]} 6. bxc3 {[%emt 0:00:03]} Ne7 {[%emt 0:00:11]} 7. Ne2 {[%emt 0:00:06]} Qc7 {[%emt 0:00:07]} 8. g3 {[%emt 0:00:06]} b6 {[%emt 0:00:35]} 9. Bh3 {[%emt 0:00:11]} Ba6 {[%emt 0:00:28]} 10. O-O {[%emt 0:00:07]} Nbc6 {[%emt 0:00:48]} 11. Be3 {[%emt 0:00:39]} Bxe2 {[%emt 0:01:10]} 12. Qxe2 {[%emt 0:00:09]} cxd4 {[%emt 0:05:46]} 13. cxd4 {[%emt 0:00:09]} Na5 {[%emt 0:03:44]} 14. f4 {[%emt 0:11:48]} g6 {[%emt 0:03:02]} 15. g4 {[%emt 0:00:41]} h5 {[%emt 0:08:04]} 16. f5 {[%emt 0:00:54]} hxg4 {[%emt 0:02:49]} 17. fxe6 {[%emt 0:00:05]} gxh3 {[%emt 0:02:21]} 18. exf7+ {[%emt 0:01:22]} Kf8 {[%emt 0:00:20]} 19. Bg5 {[%emt 0:11:38]} Qc3 {[%emt 0:24:33]} 20. Rad1 {[%emt 0:10:01]} Rh5 {[%emt 0:00:25]} 21. Qxh5 {[%emt 0:00:10]} 1-0

[Event "Marshall CC Premier 04-2025"]
[Site "New York"]
[Date "2025.04.06"]
[Round "3.7"]
[White "Cheung, Kyle"]
[Black "Marsh, James J"]
[Result "1/2-1/2"]
[Annotator "RC"]
[ECO "C02"]
[WhiteElo "1934"]
[BlackElo "2058"]
[PlyCount "114"]
[EventDate "2025.01.03"]
[EventType "swiss"]
[EventCountry "USA"]
[SourceTitle "playchess.com"]
[Source "ChessBase"]
[SourceQuality "1"]
[TimeControl "5400+30"]

1. e4 {[%emt 0:00:02]} e6 {[%emt 0:01:05]} 2. d4 {[%emt 0:00:10]} d5 {[%emt 0:00:05]} 3. e5 {[%emt 0:00:41]} c5 {[%emt 0:00:12]} 4. c3 {[%emt 0:00:02]} Nc6 {[%emt 0:00:05]} 5. Nf3 {[%emt 0:00:03]} Bd7 {[%emt 0:00:07]} 6. a3 {[%emt 0:02:12]} c4 {[%emt 0:00:26]} 7. g3 {[%emt 0:01:47]} Na5 {[%emt 0:00:51]} 8. Nbd2 {[%emt 0:00:13]} Bc6 {[%emt 0:00:40]} 9. h4 {[%emt 0:05:17]} Qd7 {[%emt 0:00:57]} 10. Bh3 {[%emt 0:02:03]} Ba4 {[%emt 0:01:18]} 11. Qe2 {[%emt 0:01:29]} O-O-O {[%emt 0:02:39]} 12. O-O {[%emt 0:01:30]} Kb8 {[%emt 0:01:32]} 13. Re1 {[%emt 0:03:29]} h6 {[%emt 0:02:10]} 14. Nf1 {[%emt 0:02:26]} Nb3 {[%emt 0:02:54]} 15. Rb1 {[%emt 0:00:48]} Nxc1 {[%emt 0:06:50]} 16. Rexc1 {[%emt 0:02:56]} Ne7 {[%emt 0:00:30]} 17. Ne3 {[%emt 0:05:55]} Nc6 {[%emt 0:02:20]} 18. Nd2 {[%emt 0:03:14]} Be7 {[%emt 0:05:59]} 19. Rf1 {[%emt 0:01:25]} Rdg8 {[%emt 0:05:48]} 20. Nf3 {[%emt 0:12:44]} Bd8 {[%emt 0:04:04]} 21. Kh2 {[%emt 0:11:33]} Bc7 {[%emt 0:04:45]} 22. Nd2 {[%emt 0:09:30]} Bd8 {[%emt 0:06:20]} 23. Rg1 {[%emt 0:02:54]} Re8 {[%emt 0:01:58]} 24. f4 {[%emt 0:02:14]} g6 {[%emt 0:08:19]} 25. Nf3 {[%emt 0:04:06]} Reg8 {[%emt 0:06:31]} 26. Rg2 {[%emt 0:02:11]} h5 {[%emt 0:03:14]} 27. Rgg1 {[%emt 0:03:10]} a6 {[%emt 0:00:49]} 28. Qd2 {[%emt 0:00:56]} Ka7 {[%emt 0:00:49]} 29. Bf1 {[%emt 0:00:42]} Be7 {[%emt 0:03:18]} 30. Be2 {[%emt 0:00:39]} Rc8 {[%emt 0:01:38]} 31. Bd1 {[%emt 0:03:48]} Na5 {[%emt 0:00:56]} 32. Qe1 {[%emt 0:00:52]} Rc7 {[%emt 0:02:00]} 33. Nf1 {[%emt 0:00:45]} Rhc8 {[%emt 0:02:32]} 34. N1d2 {[%emt 0:00:16]} Ka8 {[%emt 0:01:02]} 35. Qe2 {[%emt 0:01:17]} Rh8 {[%emt 0:00:35]} 36. Re1 {[%emt 0:00:54]} Rb8 {[%emt 0:00:35]} 37. Bxa4 {[%emt 0:02:22]} Qxa4 {[%emt 0:00:05]} 38. Rec1 {[%emt 0:01:55]} Ka7 {[%emt 0:01:32]} 39. Ne1 {[%emt 0:00:12]} Rbc8 {[%emt 0:02:26]} 40. Kg2 {[%emt 0:01:12]} Ka8 {[%emt 0:00:56]} 41. Nc2 {[%emt 0:02:10]} Nb3 {[%emt 0:02:56]} 42. Nxb3 {[%emt 0:01:19]} Qxb3 {[%emt 0:00:11]} 43. Qd2 {[%emt 0:00:49]} Ka7 {[%emt 0:01:01]} 44. Qd1 {[%emt 0:00:40]} Rb8 {[%emt 0:00:40]} 45. Ne3 {[%emt 0:01:59]} Qxd1 {[%emt 0:00:17]} 46. Rxd1 {[%emt 0:00:15]} b5 {[%emt 0:00:39]} 47. Kf3 {[%emt 0:01:43]} a5 {[%emt 0:01:06]} 48. Ra1 {[%emt 0:01:15]} Kb7 {[%emt 0:00:27]} 49. Ke2 {[%emt 0:00:14]} Kc6 {[%emt 0:00:32]} 50. Kd2 {[%emt 0:00:57]} Ra7 {[%emt 0:00:14]} 51. Rdb1 {[%emt 0:00:26]} Rba8 {[%emt 0:00:28]} 52. Kc2 {[%emt 0:00:25]} b4 {[%emt 0:02:45]} 53. a4 {[%emt 0:00:19]} Rb7 {[%emt 0:01:20]} 54. Nf1 {[%emt 0:00:07]} Rab8 {[%emt 0:01:25]} 55. Nd2 {[%emt 0:00:15]} Kd7 {[%emt 0:00:37]} 56. Nf3 {[%emt 0:00:26]} Ke8 {[%emt 0:02:10]} 57. Nd2 {[%emt 0:00:05]} Kd7 {[%emt 0:11:20]} 1/2-1/2

[Event "Marshall CC Premier 04-2025"]
[Site "New York"]
[Date "2025.04.06"]
[Round "3.8"]
[White "Chin, Spencer"]
[Black "Li, Mason J"]
[Result "1/2-1/2"]
[Annotator "RC"]
[ECO "E70"]
[WhiteElo "2084"]
[BlackElo "1823"]
[PlyCount "74"]
[EventDate "2025.01.03"]
[EventType "swiss"]
[EventCountry "USA"]
[SourceTitle "playchess.com"]
[Source "ChessBase"]
[SourceQuality "1"]
[TimeControl "5400+30"]

1. d4 {[%emt 0:01:05]} Nf6 {[%emt 0:00:19]} 2. c4 {[%emt 0:00:36]} g6 {[%emt 0:00:09]} 3. Nc3 {[%emt 0:00:04]} Bg7 {[%emt 0:00:06]} 4. e4 {[%emt 0:00:17]} d6 {[%emt 0:00:05]} 5. Nge2 {[%emt 0:00:51]} h5 {[%emt 0:02:21]} 6. Bg5 {[%emt 0:03:44]} Nc6 {[%emt 0:01:28]} 7. Qd2 {[%emt 0:08:03]} a6 {[%emt 0:02:43]} 8. f4 {[%emt 0:11:28]} Nh7 {[%emt 0:14:05]} 9. Bh4 {[%emt 0:01:06]} O-O {[%emt 0:00:09]} 10. d5 {[%emt 0:12:07]} Na5 {[%emt 0:03:53]} 11. Nc1 {[%emt 0:05:48]} c5 {[%emt 0:01:50]} 12. Bd3 {[%emt 0:01:04]} b5 {[%emt 0:03:05]} 13. O-O {[%emt 0:05:03]} Nxc4 {[%emt 0:01:40]} 14. Bxc4 {[%emt 0:00:08]} bxc4 {[%emt 0:00:05]} 15. N1e2 {[%emt 0:02:17]} Bf6 {[%emt 0:05:44]} 16. Bxf6 {[%emt 0:01:58]} Nxf6 {[%emt 0:00:17]} 17. e5 {[%emt 0:05:07]} dxe5 {[%emt 0:00:34]} 18. fxe5 {[%emt 0:00:09]} Ng4 {[%emt 0:00:57]} 19. Qg5 {[%emt 0:06:42]} Qc7 {[%emt 0:02:33]} 20. d6 {[%emt 0:02:35]} exd6 {[%emt 0:00:23]} 21. h3 {[%emt 0:03:42]} Nxe5 {[%emt 0:03:25]} 22. Nd5 {[%emt 0:01:44]} Qd8 {[%emt 0:04:15]} 23. Nf6+ {[%emt 0:00:20]} Kg7 {[%emt 0:00:07]} 24. Nxh5+ {[%emt 0:01:24]} Kh7 {[%emt 0:00:21]} 25. Nf6+ {[%emt 0:00:37]} Kg7 {[%emt 0:00:39]} 26. Nh5+ {[%emt 0:05:13]} Kh7 {[%emt 0:00:17]} 27. Nf6+ {[%emt 0:00:03]} Kg7 {[%emt 0:00:09]} 28. Nf4 {[%emt 0:00:02]} Rh8 {[%emt 0:02:58]} 29. N6h5+ {[%emt 0:00:06]} Kh7 {[%emt 0:00:33]} 30. Nf6+ {[%emt 0:00:04]} Kg7 {[%emt 0:00:05]} 31. N4h5+ {[%emt 0:10:44]} Kf8 {[%emt 0:00:14]} 32. Nh7+ {[%emt 0:00:06]} Ke8 {[%emt 0:00:18]} 33. N5f6+ {[%emt 0:00:12]} Ke7 {[%emt 0:00:06]} 34. Ng4+ {[%emt 0:00:10]} Ke8 {[%emt 0:05:48]} 35. Nhf6+ {[%emt 0:00:29]} Kf8 {[%emt 0:00:27]} 36. Nh7+ {[%emt 0:01:49]} Ke8 {[%emt 0:00:18]} 37. Nhf6+ {[%emt 0:00:03]} Kf8 {[%emt 0:00:04]} 1/2-1/2